[Event "Schack-SM 2023: Veteran-SM 65+"]
[Site "Helsingborg Arena, Mellersta Stenbocksgatan 14, Helsingborg, Sweden"]
[Date "2023.07.04"]
[Round "4.5"]
[White "Green, Per"]
[Black "Quinn, David"]
[Result "1-0"]
[TimeControl "90 minutes for 40 moves + 30 minutes for the rest of games + 30 seconds per move from move one."]
[WhiteElo "1898"]
[BlackElo "2006"]

1. c4 {[%clk 01:30:16]} {[%emt 00:00:44]} Nf6 {[%clk 01:30:53]} {[%emt
00:00:07]} 2. g3 {[%clk 01:30:31]} {[%emt 00:00:14]} g6 {[%clk 01:31:15]}
{[%emt 00:00:08]} 3. Bg2 {[%clk 01:30:19]} {[%emt 00:00:42]} Bg7 {[%clk
01:31:37]} {[%emt 00:00:08]} 4. Nc3 {[%clk 01:30:39]} {[%emt 00:00:11]} O-O
{[%clk 01:31:38]} {[%emt 00:00:29]} 5. d4 {[%clk 01:30:18]} {[%emt 00:00:50]}
d6 {[%clk 01:31:51]} {[%emt 00:00:18]} 6. h3 {[%clk 01:30:04]} {[%emt
00:00:43]} Nc6 {[%clk 01:31:06]} {[%emt 00:01:16]} 7. Nf3 {[%clk 01:29:45]}
{[%emt 00:00:49]} a6 {[%clk 01:30:32]} {[%emt 00:01:03]} 8. e4 {[%clk
01:28:18]} {[%emt 00:01:56]} Rb8 {[%clk 01:25:58]} {[%emt 00:05:05]} 9. O-O
{[%clk 01:28:12]} {[%emt 00:00:36]} Bd7 {[%clk 01:22:19]} {[%emt 00:04:09]} 10.
e5 {[%clk 01:19:19]} {[%emt 00:09:23]} Ne8 {[%clk 01:19:55]} {[%emt 00:02:54]}
11. Qe2 {[%clk 01:14:34]} {[%emt 00:05:15]} b5 {[%clk 01:12:47]} {[%emt
00:07:38]} 12. cxb5 {[%clk 01:12:06]} {[%emt 00:02:58]} axb5 {[%clk 01:12:48]}
{[%emt 00:00:29]} 13. Re1 {[%clk 01:08:09]} {[%emt 00:04:27]} Na5 {[%clk
00:57:59]} {[%emt 00:15:19]} 14. Bg5 {[%clk 01:03:07]} {[%emt 00:05:31]} f6
{[%clk 00:56:35]} {[%emt 00:01:55]} 15. exf6 {[%clk 01:01:22]} {[%emt
00:02:15]} exf6 {[%clk 00:56:30]} {[%emt 00:00:36]} 16. Bf4 {[%clk 01:01:23]}
{[%emt 00:00:28]} g5 {[%clk 00:49:12]} {[%emt 00:07:48]} 17. Bc1 {[%clk
01:00:07]} {[%emt 00:01:45]} h6 {[%clk 00:44:44]} {[%emt 00:04:59]} 18. Qd3
{[%clk 00:52:37]} {[%emt 00:08:00]} f5 {[%clk 00:40:59]} {[%emt 00:04:15]} 19.
b3 {[%clk 00:47:08]} {[%emt 00:05:59]} Nf6 {[%clk 00:30:35]} {[%emt 00:10:54]}
20. Bd2 {[%clk 00:46:43]} {[%emt 00:00:54]} b4 {[%clk 00:30:07]} {[%emt
00:01:00]} 21. Nd1 {[%clk 00:44:20]} {[%emt 00:02:51]} Ne4 {[%clk 00:29:41]}
{[%emt 00:00:57]} 22. Rxe4 {[%clk 00:35:15]} {[%emt 00:09:36]} fxe4 {[%clk
00:29:19]} {[%emt 00:00:51]} 23. Qxe4 {[%clk 00:35:38]} {[%emt 00:00:06]} Bc6
{[%clk 00:28:36]} {[%emt 00:01:14]} 24. d5 {[%clk 00:21:26]} {[%emt 00:14:42]}
Bd7 {[%clk 00:24:35]} {[%emt 00:04:31]} 25. Rc1 {[%clk 00:19:01]} {[%emt
00:02:55]} Re8 {[%clk 00:17:54]} {[%emt 00:07:11]} 26. Qc2 {[%clk 00:17:01]}
{[%emt 00:02:29]} c5 {[%clk 00:18:06]} {[%emt 00:00:19]} 27. dxc6 {[%clk
00:16:35]} {[%emt 00:00:57]} Nxc6 {[%clk 00:15:08]} {[%emt 00:03:28]} 28. Qc4+
{[%clk 00:14:32]} {[%emt 00:02:33]} Kh8 {[%clk 00:11:54]} {[%emt 00:03:43]} 29.
Ne3 {[%clk 00:14:14]} {[%emt 00:00:48]} Qf6 {[%clk 00:09:13]} {[%emt 00:03:11]}
30. Nd5 {[%clk 00:11:54]} {[%emt 00:02:50]} Qg6 {[%clk 00:08:01]} {[%emt
00:01:41]} 31. Be3 {[%clk 00:11:09]} {[%emt 00:01:16]} Re4 {[%clk 00:04:18]}
{[%emt 00:04:14]} 32. Qd3 {[%clk 00:10:31]} {[%emt 00:01:07]} Qe6 {[%clk
00:03:56]} {[%emt 00:00:52]} 33. Nxg5 {[%clk 00:09:29]} {[%emt 00:01:31]} Rxe3
{[%clk 00:03:49]} {[%emt 00:00:37]} 34. Qh7# {[%emt 00:00:23]} 1-0

[Event "Schack-SM 2023: Veteran-SM 50+"]
[Site "Helsingborg Arena, Mellersta Stenbocksgatan 14, Helsingborg, Sweden"]
[Date "2023.07.04"]
[Round "4.5"]
[White "Ljung, Rickard"]
[Black "Gamback, Bjorn"]
[Result "1-0"]
[TimeControl "90 minutes for 40 moves + 30 minutes for the rest of games + 30 seconds per move from move one."]
[BlackTitle "CM"]
[WhiteElo "1939"]
[BlackElo "2048"]

1. d4 {[%clk 01:30:55]} {[%emt 00:00:04]} d5 {[%clk 01:23:36]} {[%emt
00:07:24]} 2. Bf4 {[%clk 01:31:11]} {[%emt 00:00:14]} c6 {[%clk 01:23:52]}
{[%emt 00:00:15]} 3. e3 {[%clk 01:31:13]} {[%emt 00:00:28]} Qb6 {[%clk
01:23:59]} {[%emt 00:00:22]} 4. Qc1 {[%clk 01:28:09]} {[%emt 00:03:35]} Bf5
{[%clk 01:24:22]} {[%emt 00:00:07]} 5. Nf3 {[%clk 01:28:08]} {[%emt 00:00:31]}
Nf6 {[%clk 01:24:31]} {[%emt 00:00:21]} 6. Nh4 {[%clk 01:27:50]} {[%emt
00:00:47]} Be6 {[%clk 01:24:45]} {[%emt 00:00:16]} 7. Bd3 {[%clk 01:27:13]}
{[%emt 00:01:08]} h6 {[%clk 01:24:59]} {[%emt 00:00:16]} 8. Nf3 {[%clk
01:26:59]} {[%emt 00:00:43]} g5 {[%clk 01:24:43]} {[%emt 00:00:47]} 9. Bg3
{[%clk 01:25:27]} {[%emt 00:02:02]} Ne4 {[%clk 01:24:12]} {[%emt 00:01:00]} 10.
Be5 {[%clk 01:24:12]} {[%emt 00:01:45]} f6 {[%clk 01:24:28]} {[%emt 00:00:15]}
11. Bxb8 {[%clk 01:20:14]} {[%emt 00:04:28]} Rxb8 {[%clk 01:24:50]} {[%emt
00:00:08]} 12. Nfd2 {[%clk 01:20:04]} {[%emt 00:00:39]} f5 {[%clk 01:23:42]}
{[%emt 00:01:38]} 13. Nb3 {[%clk 01:16:56]} {[%emt 00:03:39]} Bg7 {[%clk
01:20:16]} {[%emt 00:03:55]} 14. f3 {[%clk 01:15:40]} {[%emt 00:01:46]} Nd6
{[%clk 01:20:19]} {[%emt 00:00:27]} 15. Nc5 {[%clk 01:14:53]} {[%emt 00:01:18]}
Bf7 {[%clk 01:20:20]} {[%emt 00:00:28]} 16. c3 {[%clk 01:14:27]} {[%emt
00:00:56]} Qc7 {[%clk 01:05:18]} {[%emt 00:15:32]} 17. Qc2 {[%clk 01:11:43]}
{[%emt 00:03:15]} e6 {[%clk 00:56:15]} {[%emt 00:09:33]} 18. Nd2 {[%clk
01:09:50]} {[%emt 00:02:22]} O-O {[%clk 00:50:38]} {[%emt 00:06:07]} 19. O-O-O
{[%clk 01:03:40]} {[%emt 00:06:40]} Rbe8 {[%clk 00:43:57]} {[%emt 00:07:12]} 20.
g4 {[%clk 00:52:58]} {[%emt 00:11:11]} Bg6 {[%clk 00:37:06]} {[%emt 00:07:21]}
21. h4 {[%clk 00:51:44]} {[%emt 00:01:44]} e5 {[%clk 00:35:24]} {[%emt
00:02:12]} 22. dxe5 {[%clk 00:45:22]} {[%emt 00:06:53]} Rxe5 {[%clk 00:35:35]}
{[%emt 00:00:18]} 23. hxg5 {[%clk 00:44:11]} {[%emt 00:01:41]} hxg5 {[%clk
00:34:13]} {[%emt 00:01:52]} 24. Nf1 {[%clk 00:35:37]} {[%emt 00:09:04]} b6
{[%clk 00:31:23]} {[%emt 00:03:20]} 25. Na6 {[%clk 00:31:24]} {[%emt 00:04:43]}
Qc8 {[%clk 00:31:15]} {[%emt 00:00:38]} 26. f4 {[%clk 00:21:02]} {[%emt
00:10:52]} Re4 {[%clk 00:31:10]} {[%emt 00:00:35]} 27. gxf5 {[%clk 00:20:03]}
{[%emt 00:01:30]} Bxf5 {[%clk 00:28:39]} {[%emt 00:03:00]} 28. Ng3 {[%clk
00:14:27]} {[%emt 00:06:06]} Rxe3 {[%clk 00:26:11]} {[%emt 00:02:58]} 29. Nxf5
{[%clk 00:14:43]} {[%emt 00:00:15]} Nxf5 {[%clk 00:26:26]} {[%emt 00:00:14]} 30.
fxg5 {[%clk 00:12:43]} {[%emt 00:02:30]} Rf3 {[%clk 00:22:36]} {[%emt
00:04:20]} 31. Qh2 {[%clk 00:12:10]} {[%emt 00:01:03]} Re8 {[%clk 00:16:06]}
{[%emt 00:07:00]} 32. Nb4 {[%clk 00:06:53]} {[%emt 00:05:47]} Qe6 {[%clk
00:14:42]} {[%emt 00:01:55]} 33. Nc2 {[%clk 00:04:13]} {[%emt 00:03:11]} Qd6
{[%clk 00:11:36]} {[%emt 00:03:34]} 34. Qh5 {[%clk 00:03:22]} {[%emt 00:01:22]}
Qf4+ {[%clk 00:11:22]} {[%emt 00:00:44]} 35. Kb1 {[%clk 00:03:44]} {[%emt
00:00:08]} Re7 {[%clk 00:09:16]} {[%emt 00:02:36]} 36. Qg6 {[%clk 00:03:16]}
{[%emt 00:00:58]} c5 {[%clk 00:07:48]} {[%emt 00:01:58]} 37. Qc6 {[%clk
00:03:02]} {[%emt 00:00:44]} Re5 {[%clk 00:05:48]} {[%emt 00:02:30]} 38. Qa8+
{[%clk 00:02:52]} {[%emt 00:00:40]} Kf7 {[%clk 00:05:42]} {[%emt 00:00:35]} 39.
Qxa7+ {[%clk 00:03:15]} {[%emt 00:00:07]} Ne7 {[%clk 00:05:58]} {[%emt
00:00:14]} 40. g6+ {[%clk 00:03:21]} {[%emt 00:00:25]} Kf6 {[%clk 00:06:03]}
{[%emt 00:00:25]} 41. Qxb6+ {[%clk 00:03:20]} {[%emt 00:00:32]} Kg5 {[%clk
00:05:35]} {[%emt 00:00:57]} 42. Qxc5 {[%clk 00:03:19]} {[%emt 00:00:30]} Rg3
{[%clk 00:04:49]} {[%emt 00:01:16]} 43. Qd4 {[%clk 00:01:37]} {[%emt 00:02:13]}
Qxd4 {[%clk 00:01:34]} {[%emt 00:03:45]} 44. Nxd4 {[%clk 00:01:31]} {[%emt
00:00:36]} Ree3 {[%clk 00:29:22]} {[%emt 00:02:41]} 45. Bc2 {[%clk 00:30:35]}
{[%emt 00:01:26]} Bxd4 {[%clk 00:26:18]} {[%emt 00:03:34]} 46. Rxd4 {[%clk
00:30:50]} {[%emt 00:00:15]} Nxg6 {[%clk 00:26:29]} {[%emt 00:00:19]} 47. Bxg6
{[%clk 00:30:01]} {[%emt 00:01:19]} Kxg6 {[%clk 00:26:53]} {[%emt 00:00:06]} 48.
Rhd1 {[%clk 00:30:01]} {[%emt 00:00:31]} Re2 {[%clk 00:26:44]} {[%emt
00:00:38]} 49. R1d2 {[%clk 00:30:12]} {[%emt 00:00:19]} Re1+ {[%clk 00:26:41]}
{[%emt 00:00:33]} 50. Kc2 {[%clk 00:30:36]} {[%emt 00:00:06]} Kf6 {[%clk
00:26:48]} {[%emt 00:00:23]} 51. Rxd5 {[%clk 00:30:55]} {[%emt 00:00:11]} Ke6
{[%clk 00:27:13]} {[%emt 00:00:05]} 52. R5d4 {[%clk 00:31:16]} {[%emt
00:00:09]} Rg8 {[%clk 00:27:06]} {[%emt 00:00:38]} 53. Kb3 {[%clk 00:30:49]}
{[%emt 00:00:57]} Ra8 {[%clk 00:27:19]} {[%emt 00:00:16]} 54. Rh2 {[%clk
00:30:47]} {[%emt 00:00:32]} Re5 {[%clk 00:27:08]} {[%emt 00:00:41]} 55. Rh6+
{[%clk 00:31:01]} {[%emt 00:00:16]} Ke7 {[%clk 00:27:32]} {[%emt 00:00:06]} 56.
Rb4 {[%clk 00:31:16]} {[%emt 00:00:15]} Re8 {[%clk 00:26:54]} {[%emt 00:01:08]}
57. Rb7+ {[%clk 00:31:15]} {[%emt 00:00:32]} Kd8 {[%clk 00:27:19]} {[%emt
00:00:05]} 58. Rb8+ {[%clk 00:31:27]} {[%emt 00:00:17]} Kc7 {[%clk 00:27:36]}
{[%emt 00:00:13]} 59. Rxe8 {[%clk 00:31:50]} {[%emt 00:00:07]} Rxe8 {[%clk
00:28:01]} {[%emt 00:00:05]} 60. a4 {[%clk 00:31:59]} {[%emt 00:00:21]} 1-0

[Event "Schack-SM 2023: Sverigemastarklassen"]
[Site "Helsingborg Arena, Mellersta Stenbocksgatan 14, Helsingborg, Sweden"]
[Date "2023.07.04"]
[Round "4.5"]
[White "Blomqvist, Erik"]
[Black "Seo, Jung Min"]
[Result "1-0"]
[TimeControl "90 minutes for 40 moves + 30 minutes for the rest of the game + 30 seconds per move from move one."]
[WhiteTitle "GM"]
[BlackTitle "IM"]
[WhiteElo "2500"]
[BlackElo "2469"]

1. e4 {[%clk 01:30:55]} {[%emt 00:00:04]} e5 {[%clk 01:30:59]} {[%emt
00:00:02]} 2. Nf3 {[%clk 01:31:14]} {[%emt 00:00:09]} Nc6 {[%clk 01:31:27]}
{[%emt 00:00:03]} 3. Bb5 {[%clk 01:31:35]} {[%emt 00:00:09]} Nf6 {[%clk
01:31:54]} {[%emt 00:00:03]} 4. O-O {[%clk 01:31:37]} {[%emt 00:00:27]} Nxe4
{[%clk 01:30:28]} {[%emt 00:01:57]} 5. Re1 {[%clk 01:31:15]} {[%emt 00:00:51]}
Nd6 {[%clk 01:30:55]} {[%emt 00:00:04]} 6. Nxe5 {[%clk 01:31:32]} {[%emt
00:00:13]} Be7 {[%clk 01:31:14]} {[%emt 00:00:11]} 7. Bf1 {[%clk 01:31:46]}
{[%emt 00:00:16]} Nxe5 {[%clk 01:30:49]} {[%emt 00:00:56]} 8. Rxe5 {[%clk
01:32:10]} {[%emt 00:00:06]} O-O {[%clk 01:31:17]} {[%emt 00:00:02]} 9. d4
{[%clk 01:32:24]} {[%emt 00:00:15]} Bf6 {[%clk 01:31:43]} {[%emt 00:00:05]} 10.
Re1 {[%clk 01:32:45]} {[%emt 00:00:08]} Re8 {[%clk 01:32:10]} {[%emt 00:00:04]}
11. Nc3 {[%clk 01:32:37]} {[%emt 00:00:38]} Rxe1 {[%clk 01:32:32]} {[%emt
00:00:08]} 12. Qxe1 {[%clk 01:33:00]} {[%emt 00:00:07]} Bxd4 {[%clk 01:08:06]}
{[%emt 00:24:56]} 13. Bf4 {[%clk 01:30:41]} {[%emt 00:02:48]} Ne8 {[%clk
01:00:04]} {[%emt 00:08:32]} 14. Nd5 {[%clk 01:30:43]} {[%emt 00:00:27]} d6
{[%clk 00:52:59]} {[%emt 00:07:36]} 15. Bg5 {[%clk 01:30:46]} {[%emt 00:00:27]}
f6 {[%clk 00:52:49]} {[%emt 00:00:41]} 16. Bh4 {[%clk 01:30:59]} {[%emt
00:00:16]} Bxb2 {[%clk 00:47:43]} {[%emt 00:05:37]} 17. Rb1 {[%clk 01:30:20]}
{[%emt 00:01:07]} Be5 {[%clk 00:48:07]} {[%emt 00:00:07]} 18. f4 {[%clk
01:30:00]} {[%emt 00:00:50]} c6 {[%clk 00:46:51]} {[%emt 00:01:46]} 19. fxe5
{[%clk 01:30:09]} {[%emt 00:00:21]} cxd5 {[%clk 00:47:15]} {[%emt 00:00:07]} 20.
exf6 {[%clk 01:30:24]} {[%emt 00:00:14]} Nxf6 {[%clk 00:47:43]} {[%emt
00:00:02]} 21. Bd3 {[%clk 01:30:38]} {[%emt 00:00:16]} Bd7 {[%clk 00:48:03]}
{[%emt 00:00:10]} 22. Qg3 {[%clk 01:29:57]} {[%emt 00:01:10]} Bc6 {[%clk
00:26:40]} {[%emt 00:21:55]} 23. Bg5 {[%clk 01:29:57]} {[%emt 00:00:29]} Kh8
{[%clk 00:22:53]} {[%emt 00:04:17]} 24. Qh4 {[%clk 01:29:45]} {[%emt 00:00:42]}
Qg8 {[%clk 00:23:10]} {[%emt 00:00:13]} 25. Bxf6 {[%clk 01:25:11]} {[%emt
00:05:05]} gxf6 {[%clk 00:23:38]} {[%emt 00:00:02]} 26. Rf1 {[%clk 01:25:12]}
{[%emt 00:00:28]} Rf8 {[%clk 00:22:05]} {[%emt 00:02:03]} 27. Rxf6 {[%clk
01:24:12]} {[%emt 00:01:30]} Rxf6 {[%clk 00:22:30]} {[%emt 00:00:05]} 28. Qxf6+
{[%clk 01:24:35]} {[%emt 00:00:08]} Qg7 {[%clk 00:22:59]} 29. Qd8+ {[%clk
01:24:11]} {[%emt 00:00:54]} Qg8 {[%clk 00:23:26]} {[%emt 00:00:03]} 30. Qxd6
{[%clk 01:24:25]} {[%emt 00:00:16]} Qe8 {[%clk 00:17:11]} {[%emt 00:06:45]} 31.
h3 {[%clk 01:20:47]} {[%emt 00:04:07]} a6 {[%clk 00:15:21]} {[%emt 00:02:21]}
32. Kh2 {[%clk 01:16:24]} {[%emt 00:04:53]} Qf7 {[%clk 00:12:27]} {[%emt
00:03:25]} 33. h4 {[%clk 00:54:36]} {[%emt 00:22:17]} Kg8 {[%clk 00:06:14]}
{[%emt 00:06:43]} 34. Qd8+ {[%clk 00:37:53]} {[%emt 00:17:12]} Be8 {[%clk
00:05:29]} {[%emt 00:01:16]} 35. Qg5+ {[%clk 00:28:30]} {[%emt 00:09:53]} Kh8
{[%clk 00:04:37]} {[%emt 00:01:21]} 36. Qe5+ {[%clk 00:26:22]} {[%emt
00:02:39]} Kg8 {[%clk 00:04:23]} {[%emt 00:00:44]} 37. Be2 {[%clk 00:19:51]}
{[%emt 00:07:00]} h6 {[%clk 00:03:50]} {[%emt 00:01:04]} 38. Bf3 {[%clk
00:01:17]} {[%emt 00:19:04]} Bc6 {[%clk 00:04:15]} {[%emt 00:00:05]} 39. Bh5
{[%clk 00:00:54]} {[%emt 00:00:53]} Qg7 {[%clk 00:04:18]} {[%emt 00:00:27]} 40.
Qd6 {[%clk 00:00:45]} {[%emt 00:00:38]} d4 {[%clk 00:02:25]} {[%emt 00:02:24]}
41. Bg6 {[%clk 00:25:21]} {[%emt 00:05:54]} Qd7 {[%clk 00:31:49]} {[%emt
00:01:04]} 42. Qg3 {[%clk 00:23:13]} {[%emt 00:02:39]} Qe7 {[%clk 00:23:58]}
{[%emt 00:08:22]} 43. Bd3+ {[%clk 00:17:44]} {[%emt 00:05:58]} Qg7 {[%clk
00:15:25]} {[%emt 00:09:04]} 44. Qb8+ {[%clk 00:17:08]} {[%emt 00:01:06]} Kf7
{[%clk 00:14:52]} {[%emt 00:01:02]} 45. Bc4+ {[%clk 00:12:23]} {[%emt
00:05:15]} Ke7 {[%clk 00:12:50]} {[%emt 00:02:32]} 46. Qc7+ {[%clk 00:12:36]}
{[%emt 00:00:17]} Bd7 {[%clk 00:12:56]} {[%emt 00:00:24]} 47. Qxb7 {[%clk
00:11:47]} {[%emt 00:01:19]} Qe5+ {[%clk 00:12:55]} {[%emt 00:00:31]} 48. g3
{[%clk 00:11:54]} {[%emt 00:00:22]} a5 {[%clk 00:12:36]} {[%emt 00:00:50]} 49.
Bf1 {[%clk 00:06:59]} {[%emt 00:05:24]} Qf5 {[%clk 00:12:22]} {[%emt 00:00:46]}
50. Qg2 {[%clk 00:06:17]} {[%emt 00:01:10]} Be6 {[%clk 00:09:06]} {[%emt
00:03:48]} 51. a3 {[%clk 00:06:14]} {[%emt 00:00:33]} Qc5 {[%clk 00:09:00]}
{[%emt 00:00:36]} 52. Qe4 {[%clk 00:05:23]} {[%emt 00:01:20]} Qxa3 {[%clk
00:08:52]} {[%emt 00:00:39]} 53. Qxd4 {[%clk 00:04:13]} {[%emt 00:01:40]} Qb4
{[%clk 00:02:59]} {[%emt 00:06:23]} 54. Qg7+ {[%clk 00:04:38]} {[%emt
00:00:05]} Bf7 {[%clk 00:03:03]} {[%emt 00:00:26]} 55. Qxh6 {[%clk 00:04:38]}
{[%emt 00:00:30]} a4 {[%clk 00:03:25]} {[%emt 00:00:08]} 56. Qg5+ {[%clk
00:04:49]} {[%emt 00:00:18]} Kf8 {[%clk 00:02:44]} {[%emt 00:01:11]} 57. h5
{[%clk 00:03:02]} {[%emt 00:02:17]} a3 {[%clk 00:02:03]} {[%emt 00:01:12]} 58.
h6 {[%clk 00:02:40]} {[%emt 00:00:51]} Qc3 {[%clk 00:02:08]} {[%emt 00:00:24]}
59. Qd8+ {[%clk 00:01:03]} {[%emt 00:02:07]} Be8 {[%clk 00:02:35]} {[%emt
00:00:04]} 60. Qd6+ {[%clk 00:01:18]} {[%emt 00:00:15]} Kg8 {[%clk 00:01:12]}
{[%emt 00:01:53]} 61. Bg2 {[%clk 00:00:34]} {[%emt 00:01:14]} Bf7 {[%clk
00:01:28]} {[%emt 00:00:14]} 62. Be4 {[%clk 00:00:39]} {[%emt 00:00:25]} Kh8
{[%clk 00:01:23]} {[%emt 00:00:35]} 63. Qd8+ {[%clk 00:00:42]} {[%emt
00:00:27]} 1-0

[Event "Schack-SM 2023: Mastarklassen-elit"]
[Site "Helsingborg Arena, Mellersta Stenbocksgatan 14, Helsingborg, Sweden"]
[Date "2023.07.04"]
[Round "4.4"]
[White "Crevatin, Leo"]
[Black "Wiedenkeller, Michael"]
[Result "1/2-1/2"]
[TimeControl "90 minutes for 40 moves + 30 minutes for the rest of games + 30 seconds per move from move one."]
[WhiteTitle "FM"]
[BlackTitle "IM"]
[WhiteElo "2265"]
[BlackElo "2445"]

1. d4 {[%clk 01:30:56]} {[%emt 00:00:03]} d5 {[%clk 01:30:19]} {[%emt
00:00:41]} 2. c4 {[%clk 01:31:18]} {[%emt 00:00:07]} dxc4 {[%clk 01:30:39]}
{[%emt 00:00:13]} 3. Nf3 {[%clk 01:31:40]} {[%emt 00:00:07]} Nf6 {[%clk
01:30:49]} {[%emt 00:00:19]} 4. e3 {[%clk 01:32:00]} {[%emt 00:00:10]} e6
{[%clk 01:31:02]} {[%emt 00:00:18]} 5. Bxc4 {[%clk 01:32:23]} {[%emt 00:00:07]}
c5 {[%clk 01:31:18]} {[%emt 00:00:14]} 6. Nc3 {[%clk 01:32:08]} {[%emt
00:00:45]} a6 {[%clk 01:25:47]} {[%emt 00:06:02]} 7. e4 {[%clk 01:31:44]}
{[%emt 00:00:54]} b5 {[%clk 01:21:22]} {[%emt 00:04:55]} 8. Bb3 {[%clk
01:32:07]} {[%emt 00:00:07]} c4 {[%clk 01:13:03]} {[%emt 00:08:49]} 9. Bc2
{[%clk 01:32:04]} {[%emt 00:00:32]} Bb7 {[%clk 01:10:52]} {[%emt 00:02:42]} 10.
e5 {[%clk 01:25:09]} {[%emt 00:07:25]} Nd5 {[%clk 01:11:10]} {[%emt 00:00:12]}
11. Ne4 {[%clk 01:22:46]} {[%emt 00:02:53]} h6 {[%clk 01:09:13]} {[%emt
00:02:27]} 12. h4 {[%clk 01:16:19]} {[%emt 00:06:57]} Nc6 {[%clk 01:03:49]}
{[%emt 00:05:54]} 13. O-O {[%clk 01:07:30]} {[%emt 00:09:18]} Qb6 {[%clk
00:59:25]} {[%emt 00:04:55]} 14. a4 {[%clk 01:01:51]} {[%emt 00:06:09]} Rd8
{[%clk 00:46:10]} {[%emt 00:13:45]} 15. axb5 {[%clk 00:57:14]} {[%emt
00:05:06]} axb5 {[%clk 00:46:38]} {[%emt 00:00:03]} 16. Be3 {[%clk 00:53:56]}
{[%emt 00:03:47]} Be7 {[%clk 00:43:53]} {[%emt 00:03:16]} 17. Qe2 {[%clk
00:51:31]} {[%emt 00:02:55]} Nxe3 {[%clk 00:40:41]} {[%emt 00:03:42]} 18. fxe3
{[%clk 00:50:50]} {[%emt 00:01:11]} Nb4 {[%clk 00:39:27]} {[%emt 00:01:45]} 19.
Bb1 {[%clk 00:49:15]} {[%emt 00:02:05]} O-O {[%clk 00:39:24]} {[%emt 00:00:31]}
1/2-1/2